[Event "Titled Tuesday Blitz July 25 Late 2023"]
[White "Alexikov, Alexander"]
[Black "Terletsky, Oleg"]
[WhiteFideId "14103958"]
[BlackFideId "14116774"]
[WhiteElo "2230"]
[BlackElo "2513"]
[Result "0-1"]
[Round "3"]
[TimeControl "180+2"]
[Date "2023.07.25"]
[WhiteClock "0:00:00"]
[BlackClock "0:00:02"]
[Board "138"]

1. e4 {[%clk 0:03:00]}  e5 {[%clk 0:02:59]} 2. Nf3 {[%clk 0:03:00]}  Nc6 {[%clk 0:03:00]} 3. c3 {[%clk 0:03:00]}  d5 {[%clk 0:02:59]} 4. Qa4 {[%clk 0:02:58]}  Qd6 {[%clk 0:02:55]} 5. Bb5 {[%clk 0:02:54]}  Bd7 {[%clk 0:02:52]} 6. d4 {[%clk 0:02:50]}  dxe4 {[%clk 0:02:33]} 7. Nxe5 {[%clk 0:02:48]}  Nxe5 {[%clk 0:01:58]} 8. dxe5 {[%clk 0:02:47]}  Bxb5 {[%clk 0:01:44]} 9. Qxb5+ {[%clk 0:02:47]}  Qc6 {[%clk 0:01:33]} 10. Qxc6+ {[%clk 0:02:19]}  bxc6 {[%clk 0:01:34]} 11. Bf4 {[%clk 0:02:04]}  Ne7 {[%clk 0:01:27]} 12. Nd2 {[%clk 0:02:01]}  Nd5 {[%clk 0:01:27]} 13. g3 {[%clk 0:01:57]}  f5 {[%clk 0:00:59]} 14. exf6 {[%clk 0:01:54]}  Nxf6 {[%clk 0:00:32]} 15. Bxc7 {[%clk 0:01:51]}  Bc5 {[%clk 0:00:32]} 16. Nb3 {[%clk 0:01:34]}  Bb6 {[%clk 0:00:30]} 17. Be5 {[%clk 0:01:29]}  Bxf2+ {[%clk 0:00:25]} 18. Ke2 {[%clk 0:01:28]}  O-O {[%clk 0:00:16]} 19. Bxf6 {[%clk 0:00:58]}  Rxf6 {[%clk 0:00:16]} 20. Rhf1 {[%clk 0:00:58]}  e3 {[%clk 0:00:16]} 21. Rad1 {[%clk 0:00:54]}  Rb8 {[%clk 0:00:15]} 22. Rd4 {[%clk 0:00:49]}  a5 {[%clk 0:00:13]} 23. Ra4 {[%clk 0:00:48]}  Rd6 {[%clk 0:00:11]} 24. Rxa5 {[%clk 0:00:42]}  Rbd8 {[%clk 0:00:07]} 25. Rf5 {[%clk 0:00:37]}  g6 {[%clk 0:00:07]} 26. Rf4 {[%clk 0:00:35]}  Kg7 {[%clk 0:00:06]} 27. Rd4 {[%clk 0:00:33]}  Rxd4 {[%clk 0:00:06]} 28. Nxd4 {[%clk 0:00:32]}  Ra8 {[%clk 0:00:06]} 29. a3 {[%clk 0:00:30]}  c5 {[%clk 0:00:06]} 30. Nc2 {[%clk 0:00:28]}  Rb8 {[%clk 0:00:06]} 31. b4 {[%clk 0:00:26]}  cxb4 {[%clk 0:00:06]} 32. axb4 {[%clk 0:00:25]}  Rc8 {[%clk 0:00:06]} 33. Kd3 {[%clk 0:00:24]}  Rd8+ {[%clk 0:00:06]} 34. Nd4 {[%clk 0:00:22]}  Rc8 {[%clk 0:00:05]} 35. b5 {[%clk 0:00:21]}  h5 {[%clk 0:00:05]} 36. c4 {[%clk 0:00:19]}  Kh6 {[%clk 0:00:05]} 37. b6 {[%clk 0:00:18]}  h4 {[%clk 0:00:02]} 38. Rc1 {[%clk 0:00:15]}  hxg3 {[%clk 0:00:01]} 39. hxg3 {[%clk 0:00:13]}  Bxg3 {[%clk 0:00:01]} 40. Kxe3 {[%clk 0:00:12]}  g5 {[%clk 0:00:02]} 41. c5 {[%clk 0:00:11]}  Bf4+ {[%clk 0:00:02]} 42. Ke4 {[%clk 0:00:10]}  Bxc1 {[%clk 0:00:03]} 43. Kd5 {[%clk 0:00:09]}  Bf4 {[%clk 0:00:03]} 44. c6 {[%clk 0:00:08]}  Rxc6 {[%clk 0:00:02]} 45. Nxc6 {[%clk 0:00:06]}  g4 {[%clk 0:00:02]} 46. b7 {[%clk 0:00:05]}  Bc7 {[%clk 0:00:01]} 47. Ke4 {[%clk 0:00:03]}  g3 {[%clk 0:00:01]} 48. Kf3 {[%clk 0:00:00]}  Kg6 {[%clk 0:00:02]} 0-1


[Site "https://www.chess.com"]

[Event "Titled Tuesday Blitz July 25 Late 2023"]
[White "Ardila, Oscar Humberto"]
[Black "NLLO777"]
[WhiteFideId "4404742"]
[WhiteElo "2230"]
[BlackElo "2512"]
[Result "0-1"]
[Round "3"]
[TimeControl "180+2"]
[Date "2023.07.25"]
[WhiteClock "0:00:07"]
[BlackClock "0:01:55"]
[Board "139"]

1. d4 {[%clk 0:03:00]}  Nf6 {[%clk 0:03:00]} 2. c4 {[%clk 0:03:00]}  c5 {[%clk 0:03:00]} 3. d5 {[%clk 0:02:59]}  b5 {[%clk 0:03:01]} 4. Qc2 {[%clk 0:02:59]}  d6 {[%clk 0:03:00]} 5. e4 {[%clk 0:02:59]}  g6 {[%clk 0:03:01]} 6. h3 {[%clk 0:02:57]}  Bg7 {[%clk 0:03:00]} 7. Nf3 {[%clk 0:02:57]}  O-O {[%clk 0:03:00]} 8. Nbd2 {[%clk 0:02:46]}  bxc4 {[%clk 0:02:57]} 9. Bxc4 {[%clk 0:02:46]}  Nbd7 {[%clk 0:02:56]} 10. O-O {[%clk 0:02:45]}  Rb8 {[%clk 0:02:54]} 11. Rb1 {[%clk 0:02:42]}  Qa5 {[%clk 0:02:42]} 12. b3 {[%clk 0:02:40]}  Ba6 {[%clk 0:02:41]} 13. a4 {[%clk 0:01:59]}  Bxc4 {[%clk 0:02:31]} 14. Nxc4 {[%clk 0:01:59]}  Qa6 {[%clk 0:02:32]} 15. Bf4 {[%clk 0:01:54]}  Nb6 {[%clk 0:02:27]} 16. Nfd2 {[%clk 0:01:45]}  Nfd7 {[%clk 0:02:26]} 17. Bg5 {[%clk 0:01:42]}  Rfe8 {[%clk 0:02:22]} 18. Rfe1 {[%clk 0:01:36]}  h6 {[%clk 0:02:22]} 19. Bh4 {[%clk 0:01:33]}  Nxc4 {[%clk 0:02:21]} 20. Nxc4 {[%clk 0:01:33]}  Ne5 {[%clk 0:02:21]} 21. f4 {[%clk 0:01:18]}  Nxc4 {[%clk 0:02:18]} 22. bxc4 {[%clk 0:01:18]}  Rb4 {[%clk 0:02:13]} 23. Rxb4 {[%clk 0:01:15]}  cxb4 {[%clk 0:02:14]} 24. Qb3 {[%clk 0:01:01]}  Qb6+ {[%clk 0:02:14]} 25. Bf2 {[%clk 0:01:00]}  Bd4 {[%clk 0:02:14]} 26. Bxd4 {[%clk 0:00:52]}  Qxd4+ {[%clk 0:02:15]} 27. Kh2 {[%clk 0:00:52]}  a5 {[%clk 0:02:15]} 28. Kg3 {[%clk 0:00:38]}  Rc8 {[%clk 0:02:13]} 29. Rd1 {[%clk 0:00:28]}  Qxc4 {[%clk 0:02:11]} 30. Qxc4 {[%clk 0:00:28]}  Rxc4 {[%clk 0:02:11]} 31. Kf3 {[%clk 0:00:28]}  Rc3+ {[%clk 0:02:10]} 32. Ke2 {[%clk 0:00:27]}  Ra3 {[%clk 0:02:10]} 33. Rc1 {[%clk 0:00:26]}  Rxa4 {[%clk 0:02:10]} 34. Rc7 {[%clk 0:00:26]}  Kf8 {[%clk 0:02:11]} 35. Kd3 {[%clk 0:00:24]}  Ra3+ {[%clk 0:02:09]} 36. Kd4 {[%clk 0:00:24]}  b3 {[%clk 0:02:07]} 37. Kc3 {[%clk 0:00:23]}  a4 {[%clk 0:02:06]} 38. e5 {[%clk 0:00:18]}  Ra2 {[%clk 0:02:01]} 39. Ra7 {[%clk 0:00:18]}  b2 {[%clk 0:01:57]} 40. Kc2 {[%clk 0:00:15]}  a3 {[%clk 0:01:56]} 41. e6 {[%clk 0:00:08]}  fxe6 {[%clk 0:01:54]} 42. dxe6 {[%clk 0:00:08]}  Ra1 {[%clk 0:01:54]} 43. Ra8+ {[%clk 0:00:08]}  Kg7 {[%clk 0:01:54]} 44. Rb8 {[%clk 0:00:09]}  Rc1+ {[%clk 0:01:53]} 45. Kd2 {[%clk 0:00:09]}  b1=Q {[%clk 0:01:54]} 46. Rxb1 {[%clk 0:00:07]}  Rxb1 {[%clk 0:01:55]} 0-1


[Site "https://www.chess.com"]

[Event "Titled Tuesday Blitz July 25 Late 2023"]
[White "Storn, Justin"]
[Black "Gasparyan, David"]
[WhiteFideId "30922720"]
[BlackFideId "13311980"]
[WhiteElo "2392"]
[BlackElo "2507"]
[Result "0-1"]
[Round "3"]
[TimeControl "180+2"]
[Date "2023.07.25"]
[WhiteClock "0:00:00"]
[BlackClock "0:00:39"]
[Board "141"]

1. d4 {[%clk 0:03:00]}  Nf6 {[%clk 0:02:59]} 2. c4 {[%clk 0:03:00]}  d6 {[%clk 0:02:59]} 3. Nc3 {[%clk 0:02:59]}  e5 {[%clk 0:02:58]} 4. Nf3 {[%clk 0:02:59]}  Nbd7 {[%clk 0:02:57]} 5. e4 {[%clk 0:02:59]}  c6 {[%clk 0:02:42]} 6. Be2 {[%clk 0:02:59]}  Be7 {[%clk 0:02:39]} 7. O-O {[%clk 0:02:56]}  O-O {[%clk 0:02:39]} 8. Re1 {[%clk 0:02:40]}  Qc7 {[%clk 0:02:34]} 9. Rb1 {[%clk 0:02:27]}  a5 {[%clk 0:02:33]} 10. a3 {[%clk 0:02:26]}  exd4 {[%clk 0:02:23]} 11. Nxd4 {[%clk 0:02:19]}  Nc5 {[%clk 0:02:23]} 12. f3 {[%clk 0:02:15]}  a4 {[%clk 0:02:22]} 13. Bf4 {[%clk 0:02:06]}  Rd8 {[%clk 0:02:22]} 14. Bf1 {[%clk 0:02:04]}  Qb6 {[%clk 0:02:13]} 15. Kh1 {[%clk 0:02:00]}  Bf8 {[%clk 0:02:10]} 16. Qd2 {[%clk 0:01:33]}  Ne6 {[%clk 0:02:05]} 17. Be3 {[%clk 0:01:26]}  Qa5 {[%clk 0:01:57]} 18. Nc2 {[%clk 0:00:48]}  d5 {[%clk 0:01:49]} 19. cxd5 {[%clk 0:00:46]}  cxd5 {[%clk 0:01:49]} 20. exd5 {[%clk 0:00:41]}  Nxd5 {[%clk 0:01:49]} 21. Nxd5 {[%clk 0:00:42]}  Qxd2 {[%clk 0:01:32]} 22. Bxd2 {[%clk 0:00:29]}  Rxd5 {[%clk 0:01:32]} 23. Bc3 {[%clk 0:00:27]}  b5 {[%clk 0:01:30]} 24. Nb4 {[%clk 0:00:26]}  Rh5 {[%clk 0:01:29]} 25. Rbd1 {[%clk 0:00:22]}  Bb7 {[%clk 0:01:20]} 26. Re5 {[%clk 0:00:12]}  Rxe5 {[%clk 0:01:16]} 27. Bxe5 {[%clk 0:00:13]}  Re8 {[%clk 0:01:01]} 28. Bxb5 {[%clk 0:00:12]}  Rc8 {[%clk 0:01:00]} 29. Bxa4 {[%clk 0:00:12]}  Nc5 {[%clk 0:00:59]} 30. Bc2 {[%clk 0:00:11]}  Re8 {[%clk 0:00:55]} 31. Bd4 {[%clk 0:00:10]}  Ne6 {[%clk 0:00:54]} 32. Bc3 {[%clk 0:00:10]}  Nf4 {[%clk 0:00:53]} 33. Re1 {[%clk 0:00:10]}  Rd8 {[%clk 0:00:50]} 34. a4 {[%clk 0:00:07]}  Bc5 {[%clk 0:00:47]} 35. a5 {[%clk 0:00:06]}  Nh3 {[%clk 0:00:47]} 36. Re2 {[%clk 0:00:03]}  Nf2+ {[%clk 0:00:47]} 37. Kg1 {[%clk 0:00:04]}  Nd3+ {[%clk 0:00:43]} 38. Kf1 {[%clk 0:00:03]}  Nxb4 {[%clk 0:00:43]} 39. Bxb4 {[%clk 0:00:04]}  Bxb4 {[%clk 0:00:42]} 40. Ba4 {[%clk 0:00:00]}  Ba6 {[%clk 0:00:39]} 0-1


[Site "https://www.chess.com"]

[Event "Titled Tuesday Blitz July 25 Late 2023"]
[White "Kanakaris, Georgios"]
[Black "Lopez Perdomo, Juan David"]
[WhiteFideId "4209460"]
[BlackFideId "4405137"]
[WhiteElo "2507"]
[BlackElo "2210"]
[Result "1-0"]
[Round "3"]
[TimeControl "180+2"]
[Date "2023.07.25"]
[WhiteClock "0:00:40"]
[BlackClock "0:00:05"]
[Board "143"]

1. d4 {[%clk 0:03:00]}  c5 {[%clk 0:02:52]} 2. d5 {[%clk 0:03:00]}  e6 {[%clk 0:02:52]} 3. e4 {[%clk 0:02:58]}  exd5 {[%clk 0:02:48]} 4. exd5 {[%clk 0:02:57]}  d6 {[%clk 0:02:48]} 5. Nc3 {[%clk 0:02:57]}  Nf6 {[%clk 0:02:48]} 6. Bg5 {[%clk 0:02:52]}  Be7 {[%clk 0:02:48]} 7. Nf3 {[%clk 0:02:52]}  a6 {[%clk 0:02:43]} 8. a4 {[%clk 0:02:51]}  b6 {[%clk 0:02:44]} 9. h3 {[%clk 0:02:49]}  O-O {[%clk 0:02:44]} 10. Bd3 {[%clk 0:02:47]}  Re8 {[%clk 0:02:42]} 11. O-O {[%clk 0:02:46]}  Qc7 {[%clk 0:02:42]} 12. Re1 {[%clk 0:02:45]}  Nbd7 {[%clk 0:02:42]} 13. Qd2 {[%clk 0:02:36]}  Bb7 {[%clk 0:02:38]} 14. Bc4 {[%clk 0:02:27]}  Bf8 {[%clk 0:02:34]} 15. Rxe8 {[%clk 0:02:16]}  Rxe8 {[%clk 0:02:33]} 16. Re1 {[%clk 0:02:16]}  Rxe1+ {[%clk 0:02:34]} 17. Qxe1 {[%clk 0:02:17]}  g6 {[%clk 0:02:34]} 18. Qe2 {[%clk 0:02:17]}  Bg7 {[%clk 0:02:34]} 19. Bxa6 {[%clk 0:02:16]}  Nxd5 {[%clk 0:02:26]} 20. Bxb7 {[%clk 0:02:09]}  Nxc3 {[%clk 0:02:26]} 21. Qe8+ {[%clk 0:02:05]}  Nf8 {[%clk 0:02:27]} 22. Bc6 {[%clk 0:02:00]}  Ne2+ {[%clk 0:02:11]} 23. Kf1 {[%clk 0:02:00]}  Nd4 {[%clk 0:02:11]} 24. Nxd4 {[%clk 0:01:59]}  Bxd4 {[%clk 0:02:12]} 25. Bd8 {[%clk 0:01:48]}  Qa7 {[%clk 0:01:49]} 26. Be7 {[%clk 0:01:37]}  Bg7 {[%clk 0:01:22]} 27. Bd5 {[%clk 0:01:36]}  h5 {[%clk 0:01:10]} 28. Qxf7+ {[%clk 0:01:24]}  Kh7 {[%clk 0:01:10]} 29. b3 {[%clk 0:01:23]}  Qa6+ {[%clk 0:00:37]} 30. c4 {[%clk 0:01:19]}  Qc8 {[%clk 0:00:38]} 31. Bxd6 {[%clk 0:01:10]}  Nd7 {[%clk 0:00:38]} 32. Be6 {[%clk 0:01:04]}  Qc6 {[%clk 0:00:24]} 33. Qxd7 {[%clk 0:00:56]}  Qe4 {[%clk 0:00:19]} 34. Kg1 {[%clk 0:00:47]}  Kh6 {[%clk 0:00:15]} 35. Qf7 {[%clk 0:00:42]}  Qe1+ {[%clk 0:00:06]} 36. Kh2 {[%clk 0:00:42]}  Be5+ {[%clk 0:00:07]} 37. Bxe5 {[%clk 0:00:41]}  Qxe5+ {[%clk 0:00:07]} 38. f4 {[%clk 0:00:40]}  Qe1 {[%clk 0:00:05]} 39. Qf8+ {[%clk 0:00:39]}  Kh7 {[%clk 0:00:05]} 40. Qg8+ {[%clk 0:00:39]}  Kh6 {[%clk 0:00:05]} 41. Qh8# {[%clk 0:00:40]} 1-0


[Site "https://www.chess.com"]

[Event "Titled Tuesday Blitz July 25 Late 2023"]
[White "Vila Dupla, Aurelio"]
[Black "D`Arruda, Ricardo D."]
[WhiteFideId "2203383"]
[BlackFideId "100692"]
[WhiteElo "2189"]
[BlackElo "2507"]
[Result "1/2-1/2"]
[Round "3"]
[TimeControl "180+2"]
[Date "2023.07.25"]
[WhiteClock "0:01:46"]
[BlackClock "0:01:38"]
[Board "144"]

1. Nf3 {[%clk 0:03:00]}  d5 {[%clk 0:02:59]} 2. d4 {[%clk 0:03:00]}  Nf6 {[%clk 0:02:59]} 3. c4 {[%clk 0:03:00]}  c6 {[%clk 0:02:59]} 4. cxd5 {[%clk 0:03:01]}  cxd5 {[%clk 0:02:59]} 5. Nc3 {[%clk 0:03:01]}  Nc6 {[%clk 0:02:58]} 6. Bf4 {[%clk 0:03:01]}  g6 {[%clk 0:02:57]} 7. e3 {[%clk 0:03:01]}  Bg7 {[%clk 0:02:57]} 8. Bd3 {[%clk 0:03:02]}  O-O {[%clk 0:02:57]} 9. O-O {[%clk 0:03:03]}  b6 {[%clk 0:02:57]} 10. h3 {[%clk 0:03:02]}  Bb7 {[%clk 0:02:57]} 11. Ne5 {[%clk 0:03:02]}  e6 {[%clk 0:02:54]} 12. Nxc6 {[%clk 0:03:02]}  Bxc6 {[%clk 0:02:54]} 13. Be5 {[%clk 0:03:03]}  Qd7 {[%clk 0:02:49]} 14. Qd2 {[%clk 0:02:56]}  Ne4 {[%clk 0:02:47]} 15. Nxe4 {[%clk 0:02:39]}  dxe4 {[%clk 0:02:48]} 16. Bxg7 {[%clk 0:02:38]}  Kxg7 {[%clk 0:02:47]} 17. Be2 {[%clk 0:02:29]}  Rac8 {[%clk 0:02:44]} 18. Rfc1 {[%clk 0:02:29]}  Bd5 {[%clk 0:02:41]} 19. b3 {[%clk 0:02:18]}  a5 {[%clk 0:02:38]} 20. Rxc8 {[%clk 0:02:16]}  Rxc8 {[%clk 0:02:37]} 21. Rc1 {[%clk 0:02:17]}  Rc6 {[%clk 0:02:34]} 22. Rxc6 {[%clk 0:02:01]}  Qxc6 {[%clk 0:02:35]} 23. g3 {[%clk 0:01:59]}  h5 {[%clk 0:02:34]} 24. h4 {[%clk 0:01:59]}  a4 {[%clk 0:02:19]} 25. Qb4 {[%clk 0:01:49]}  axb3 {[%clk 0:02:18]} 26. axb3 {[%clk 0:01:48]}  Qc2 {[%clk 0:02:16]} 27. Bc4 {[%clk 0:01:46]}  Qd1+ {[%clk 0:02:08]} 28. Kg2 {[%clk 0:01:46]}  Qf3+ {[%clk 0:02:07]} 29. Kg1 {[%clk 0:01:46]}  Qd1+ {[%clk 0:01:50]} 30. Kg2 {[%clk 0:01:46]}  Qf3+ {[%clk 0:01:44]} 31. Kg1 {[%clk 0:01:46]}  Qd1+ {[%clk 0:01:38]} 1/2-1/2


[Site "https://www.chess.com"]

[Event "Titled Tuesday Blitz July 25 Late 2023"]
[White "Novikova, Margarita"]
[Black "Senthilkumar, Pranav"]
[WhiteFideId "14109689"]
[BlackFideId "2083477"]
[WhiteElo "2169"]
[BlackElo "2507"]
[Result "0-1"]
[Round "3"]
[TimeControl "180+2"]
[Date "2023.07.25"]
[WhiteClock "0:00:00"]
[BlackClock "0:01:19"]
[Board "145"]

1. e4 {[%clk 0:02:57]}  c5 {[%clk 0:02:59]} 2. Nc3 {[%clk 0:02:56]}  Nc6 {[%clk 0:02:57]} 3. d3 {[%clk 0:02:56]}  d6 {[%clk 0:02:56]} 4. g3 {[%clk 0:02:56]}  g6 {[%clk 0:02:57]} 5. Be3 {[%clk 0:02:56]}  Bg7 {[%clk 0:02:57]} 6. Qd2 {[%clk 0:02:57]}  Nf6 {[%clk 0:02:57]} 7. Bh6 {[%clk 0:02:55]}  O-O {[%clk 0:02:56]} 8. h4 {[%clk 0:02:54]}  Bg4 {[%clk 0:02:52]} 9. f3 {[%clk 0:02:52]}  Be6 {[%clk 0:02:52]} 10. h5 {[%clk 0:02:48]}  Nd4 {[%clk 0:02:44]} 11. O-O-O {[%clk 0:02:43]}  b5 {[%clk 0:02:42]} 12. g4 {[%clk 0:02:23]}  b4 {[%clk 0:02:40]} 13. Nce2 {[%clk 0:02:20]}  Nxe2+ {[%clk 0:02:35]} 14. Nxe2 {[%clk 0:02:15]}  Bxa2 {[%clk 0:02:36]} 15. Bxg7 {[%clk 0:02:10]}  Kxg7 {[%clk 0:02:35]} 16. hxg6 {[%clk 0:02:09]}  fxg6 {[%clk 0:02:35]} 17. Qh6+ {[%clk 0:02:08]}  Kg8 {[%clk 0:02:35]} 18. Ng3 {[%clk 0:02:00]}  Rf7 {[%clk 0:02:33]} 19. g5 {[%clk 0:01:55]}  Nd7 {[%clk 0:02:31]} 20. b3 {[%clk 0:01:48]}  a5 {[%clk 0:02:28]} 21. Bh3 {[%clk 0:01:47]}  Nf8 {[%clk 0:02:26]} 22. Rdf1 {[%clk 0:01:25]}  a4 {[%clk 0:02:25]} 23. f4 {[%clk 0:01:23]}  axb3 {[%clk 0:02:23]} 24. f5 {[%clk 0:01:23]}  b2+ {[%clk 0:02:10]} 25. Kxb2 {[%clk 0:01:18]}  Qa5 {[%clk 0:02:11]} 26. Kc1 {[%clk 0:01:16]}  Qa3+ {[%clk 0:02:08]} 27. Kd1 {[%clk 0:01:14]}  b3 {[%clk 0:02:07]} 28. fxg6 {[%clk 0:01:06]}  bxc2+ {[%clk 0:02:04]} 29. Ke2 {[%clk 0:01:02]}  Nxg6 {[%clk 0:01:57]} 30. Rxf7 {[%clk 0:00:55]}  Bxf7 {[%clk 0:01:58]} 31. Nf5 {[%clk 0:00:37]}  Qb2 {[%clk 0:01:44]} 32. Kf3 {[%clk 0:00:27]}  Ra3 {[%clk 0:01:34]} 33. Bf1 {[%clk 0:00:22]}  c1=Q {[%clk 0:01:21]} 34. Qxh7+ {[%clk 0:00:19]}  Kf8 {[%clk 0:01:21]} 35. Qh6+ {[%clk 0:00:10]}  Ke8 {[%clk 0:01:19]} 36. Nxd6+ {[%clk 0:00:08]}  exd6 {[%clk 0:01:19]} 37. Be2 {[%clk 0:00:00]}  Qf4+ {[%clk 0:01:19]} 0-1


[Site "https://www.chess.com"]

[Event "Titled Tuesday Blitz July 25 Late 2023"]
[White "Butolo, Alexandru-Mircea"]
[Black "Chlpik, Martin"]
[WhiteFideId "1261649"]
[BlackFideId "14923351"]
[WhiteElo "1806"]
[BlackElo "2222"]
[Result "0-1"]
[Round "3"]
[TimeControl "180+2"]
[Date "2023.07.25"]
[WhiteClock "0:00:11"]
[BlackClock "0:00:47"]
[Board "146"]

1. Nf3 {[%clk 0:02:59]}  Nf6 {[%clk 0:02:57]} 2. g3 {[%clk 0:02:58]}  g6 {[%clk 0:02:58]} 3. Bg2 {[%clk 0:02:58]}  Bg7 {[%clk 0:02:58]} 4. O-O {[%clk 0:02:58]}  O-O {[%clk 0:02:59]} 5. c4 {[%clk 0:02:58]}  d6 {[%clk 0:02:59]} 6. d4 {[%clk 0:02:57]}  Nbd7 {[%clk 0:02:58]} 7. b3 {[%clk 0:02:52]}  e5 {[%clk 0:02:57]} 8. Bb2 {[%clk 0:02:52]}  Re8 {[%clk 0:02:49]} 9. e3 {[%clk 0:02:49]}  c6 {[%clk 0:02:45]} 10. Nbd2 {[%clk 0:02:47]}  Qc7 {[%clk 0:02:45]} 11. Qc2 {[%clk 0:02:37]}  a5 {[%clk 0:02:45]} 12. Rad1 {[%clk 0:02:29]}  a4 {[%clk 0:02:44]} 13. b4 {[%clk 0:02:25]}  a3 {[%clk 0:02:42]} 14. Ba1 {[%clk 0:02:23]}  exd4 {[%clk 0:02:34]} 15. exd4 {[%clk 0:02:23]}  Nb6 {[%clk 0:02:30]} 16. Qb3 {[%clk 0:02:03]}  Ne4 {[%clk 0:02:09]} 17. Nxe4 {[%clk 0:02:02]}  Rxe4 {[%clk 0:02:10]} 18. Rfe1 {[%clk 0:02:01]}  Rxe1+ {[%clk 0:02:09]} 19. Rxe1 {[%clk 0:02:02]}  Be6 {[%clk 0:02:08]} 20. Nd2 {[%clk 0:01:44]}  Bh6 {[%clk 0:01:40]} 21. Rxe6 {[%clk 0:01:39]}  fxe6 {[%clk 0:01:34]} 22. Ne4 {[%clk 0:01:38]}  Bg7 {[%clk 0:01:33]} 23. c5 {[%clk 0:01:36]}  dxc5 {[%clk 0:01:23]} 24. Qxe6+ {[%clk 0:01:30]}  Qf7 {[%clk 0:01:22]} 25. Qxf7+ {[%clk 0:01:28]}  Kxf7 {[%clk 0:01:22]} 26. bxc5 {[%clk 0:01:29]}  Nd5 {[%clk 0:01:20]} 27. Nd6+ {[%clk 0:01:28]}  Kg8 {[%clk 0:01:14]} 28. Bxd5+ {[%clk 0:01:27]}  cxd5 {[%clk 0:01:14]} 29. Nxb7 {[%clk 0:01:27]}  Ra4 {[%clk 0:01:10]} 30. c6 {[%clk 0:01:19]}  Rc4 {[%clk 0:01:10]} 31. Nc5 {[%clk 0:01:14]}  Be5 {[%clk 0:00:56]} 32. Nd7 {[%clk 0:00:27]}  Rxc6 {[%clk 0:00:51]} 33. dxe5 {[%clk 0:00:19]}  Rc1+ {[%clk 0:00:51]} 34. Kg2 {[%clk 0:00:17]}  Rxa1 {[%clk 0:00:52]} 35. f4 {[%clk 0:00:15]}  Rxa2+ {[%clk 0:00:51]} 36. Kh3 {[%clk 0:00:14]}  Re2 {[%clk 0:00:48]} 37. Nf6+ {[%clk 0:00:14]}  Kf7 {[%clk 0:00:47]} 38. Nxd5 {[%clk 0:00:11]}  a2 {[%clk 0:00:47]} 0-1


[Site "https://www.chess.com"]

[Event "Titled Tuesday Blitz July 25 Late 2023"]
[White "Sargsyan, Anna M."]
[Black "WindWhistler11"]
[WhiteFideId "13308130"]
[WhiteElo "2565"]
[BlackElo "2447"]
[Result "1-0"]
[Round "3"]
[TimeControl "180+2"]
[Date "2023.07.25"]
[WhiteClock "0:00:49"]
[BlackClock "0:00:24"]
[Board "149"]

1. d4 {[%clk 0:02:57]}  f5 {[%clk 0:02:57]} 2. g3 {[%clk 0:02:56]}  Nf6 {[%clk 0:02:57]} 3. Bg2 {[%clk 0:02:56]}  g6 {[%clk 0:02:58]} 4. c4 {[%clk 0:02:52]}  Bg7 {[%clk 0:02:58]} 5. Nc3 {[%clk 0:02:53]}  O-O {[%clk 0:02:58]} 6. Bg5 {[%clk 0:02:51]}  d6 {[%clk 0:02:58]} 7. Bxf6 {[%clk 0:02:50]}  Bxf6 {[%clk 0:02:56]} 8. e4 {[%clk 0:02:51]}  c5 {[%clk 0:02:53]} 9. Nge2 {[%clk 0:02:50]}  Nc6 {[%clk 0:02:52]} 10. dxc5 {[%clk 0:02:47]}  dxc5 {[%clk 0:02:46]} 11. Qc1 {[%clk 0:02:44]}  Nb4 {[%clk 0:02:41]} 12. O-O {[%clk 0:02:43]}  Nd3 {[%clk 0:02:02]} 13. Qc2 {[%clk 0:02:42]}  Ne5 {[%clk 0:02:01]} 14. Rad1 {[%clk 0:02:40]}  Qe8 {[%clk 0:02:01]} 15. Nd5 {[%clk 0:02:40]}  Qf7 {[%clk 0:01:56]} 16. b3 {[%clk 0:02:30]}  Bg7 {[%clk 0:01:54]} 17. Nec3 {[%clk 0:02:25]}  fxe4 {[%clk 0:01:54]} 18. Qxe4 {[%clk 0:02:09]}  Bg4 {[%clk 0:01:49]} 19. f4 {[%clk 0:01:54]}  Nc6 {[%clk 0:01:33]} 20. Rde1 {[%clk 0:01:54]}  Bf5 {[%clk 0:01:25]} 21. Qe2 {[%clk 0:01:51]}  e6 {[%clk 0:01:23]} 22. Nb5 {[%clk 0:01:43]}  Rad8 {[%clk 0:01:20]} 23. g4 {[%clk 0:01:37]}  Kh8 {[%clk 0:00:56]} 24. gxf5 {[%clk 0:01:37]}  exd5 {[%clk 0:00:56]} 25. cxd5 {[%clk 0:01:38]}  Nd4 {[%clk 0:00:54]} 26. Nxd4 {[%clk 0:01:35]}  Bxd4+ {[%clk 0:00:55]} 27. Kh1 {[%clk 0:01:36]}  Qxf5 {[%clk 0:00:55]} 28. Qe6 {[%clk 0:01:29]}  Rd7 {[%clk 0:00:44]} 29. Qxf5 {[%clk 0:01:28]}  Rxf5 {[%clk 0:00:44]} 30. Bh3 {[%clk 0:01:28]}  Rdxd5 {[%clk 0:00:41]} 31. Bxf5 {[%clk 0:01:26]}  Rxf5 {[%clk 0:00:42]} 32. Re8+ {[%clk 0:01:27]}  Kg7 {[%clk 0:00:42]} 33. Re7+ {[%clk 0:01:27]}  Rf7 {[%clk 0:00:42]} 34. Rfe1 {[%clk 0:01:23]}  Bf6 {[%clk 0:00:41]} 35. Rxf7+ {[%clk 0:01:23]}  Kxf7 {[%clk 0:00:42]} 36. Kg2 {[%clk 0:01:23]}  b6 {[%clk 0:00:43]} 37. Kf3 {[%clk 0:01:24]}  Bc3 {[%clk 0:00:40]} 38. Re2 {[%clk 0:01:22]}  Bd4 {[%clk 0:00:40]} 39. Kg4 {[%clk 0:01:18]}  Kf6 {[%clk 0:00:40]} 40. Kf3 {[%clk 0:01:14]}  h5 {[%clk 0:00:39]} 41. Ke4 {[%clk 0:01:13]}  Ke6 {[%clk 0:00:36]} 42. Rg2 {[%clk 0:01:14]}  Kf6 {[%clk 0:00:37]} 43. Kd5 {[%clk 0:01:14]}  Be3 {[%clk 0:00:36]} 44. Kc6 {[%clk 0:01:06]}  Bxf4 {[%clk 0:00:36]} 45. Kb7 {[%clk 0:01:07]}  b5 {[%clk 0:00:36]} 46. Kxa7 {[%clk 0:01:07]}  b4 {[%clk 0:00:36]} 47. Kb6 {[%clk 0:01:06]}  Be3 {[%clk 0:00:35]} 48. Kb5 {[%clk 0:01:06]}  g5 {[%clk 0:00:35]} 49. Re2 {[%clk 0:01:00]}  Bd4 {[%clk 0:00:35]} 50. Kc4 {[%clk 0:00:56]}  g4 {[%clk 0:00:34]} 51. Kd5 {[%clk 0:00:55]}  Kf5 {[%clk 0:00:33]} 52. Re8 {[%clk 0:00:53]}  h4 {[%clk 0:00:32]} 53. Rf8+ {[%clk 0:00:53]}  Kg5 {[%clk 0:00:33]} 54. Ke4 {[%clk 0:00:54]}  Bg1 {[%clk 0:00:32]} 55. Rg8+ {[%clk 0:00:53]}  Kh5 {[%clk 0:00:31]} 56. Kf5 {[%clk 0:00:49]}  Kh6 {[%clk 0:00:28]} 57. Rxg4 {[%clk 0:00:49]}  Bxh2 {[%clk 0:00:24]} 58. Rxh4+ {[%clk 0:00:49]} 1-0


[Site "https://www.chess.com"]